[Event "Titled Tuesday Blitz January 31 Early 2023"]
[White "Gottstein, Claudius-Thomas"]
[Black "Matt, Fabian"]
[WhiteFideId "4653327"]
[BlackFideId "1623303"]
[WhiteElo "2113"]
[BlackElo "2308"]
[Result "1/2-1/2"]
[Round "06"]
[TimeControl "180+2"]
[Date "2023.01.31"]
[WhiteClock "0:00:13"]
[BlackClock "0:00:04"]

1. Nf3 {[%clk 0:02:25]}  Nf6 {[%clk 0:02:57]} 2. e3 {[%clk 0:02:24]}  d5 {[%clk 0:02:57]} 3. c4 {[%clk 0:02:24]}  e6 {[%clk 0:02:57]} 4. Nc3 {[%clk 0:02:23]}  a6 {[%clk 0:02:56]} 5. b3 {[%clk 0:02:23]}  c5 {[%clk 0:02:51]} 6. cxd5 {[%clk 0:02:21]}  exd5 {[%clk 0:02:49]} 7. d4 {[%clk 0:02:21]}  cxd4 {[%clk 0:02:49]} 8. Nxd4 {[%clk 0:02:20]}  Bb4 {[%clk 0:02:48]} 9. Bd2 {[%clk 0:02:17]}  Nc6 {[%clk 0:02:48]} 10. Nce2 {[%clk 0:02:10]}  Bxd2+ {[%clk 0:02:39]} 11. Qxd2 {[%clk 0:02:11]}  Ne4 {[%clk 0:02:40]} 12. Qc2 {[%clk 0:02:09]}  Qa5+ {[%clk 0:02:36]} 13. Kd1 {[%clk 0:01:47]}  Nxf2+ {[%clk 0:02:15]} 14. Kc1 {[%clk 0:01:47]}  Qa3+ {[%clk 0:01:57]} 15. Kb1 {[%clk 0:01:43]}  Nb4 {[%clk 0:01:43]} 16. Qd2 {[%clk 0:01:35]}  Nxh1 {[%clk 0:01:25]} 17. Nf4 {[%clk 0:01:34]}  O-O {[%clk 0:01:22]} 18. Nd3 {[%clk 0:01:22]}  a5 {[%clk 0:01:18]} 19. Nb5 {[%clk 0:01:15]}  Nxd3 {[%clk 0:00:57]} 20. Nxa3 {[%clk 0:01:13]}  Nb4 {[%clk 0:00:58]} 21. Kb2 {[%clk 0:01:06]}  Bf5 {[%clk 0:00:50]} 22. Bb5 {[%clk 0:01:00]}  Rac8 {[%clk 0:00:41]} 23. Rxh1 {[%clk 0:01:00]}  Rc5 {[%clk 0:00:40]} 24. Rc1 {[%clk 0:00:48]}  Rfc8 {[%clk 0:00:39]} 25. Rxc5 {[%clk 0:00:41]}  Rxc5 {[%clk 0:00:40]} 26. Be2 {[%clk 0:00:41]}  h6 {[%clk 0:00:31]} 27. Qd4 {[%clk 0:00:30]}  b6 {[%clk 0:00:28]} 28. g4 {[%clk 0:00:27]}  Bg6 {[%clk 0:00:22]} 29. h3 {[%clk 0:00:19]}  Kh7 {[%clk 0:00:19]} 30. h4 {[%clk 0:00:18]}  Be4 {[%clk 0:00:18]} 31. g5 {[%clk 0:00:18]}  hxg5 {[%clk 0:00:18]} 32. hxg5 {[%clk 0:00:18]}  Kg6 {[%clk 0:00:18]} 33. Qe5 {[%clk 0:00:17]}  Rc6 {[%clk 0:00:11]} 34. Qd4 {[%clk 0:00:16]}  Kh7 {[%clk 0:00:10]} 35. Qe5 {[%clk 0:00:16]}  Kg6 {[%clk 0:00:06]} 36. Bb5 {[%clk 0:00:16]}  Rc5 {[%clk 0:00:05]} 37. Be2 {[%clk 0:00:15]}  f6 {[%clk 0:00:04]} 38. gxf6 {[%clk 0:00:14]}  gxf6 {[%clk 0:00:05]} 39. Qg3+ {[%clk 0:00:14]}  Kf7 {[%clk 0:00:05]} 40. Bh5+ {[%clk 0:00:13]}  Ke6 {[%clk 0:00:05]} 41. Bg4+ {[%clk 0:00:13]}  Ke7 {[%clk 0:00:04]} 42. Be2 {[%clk 0:00:13]}  Kd7 {[%clk 0:00:02]} 43. Qg7+ {[%clk 0:00:13]}  Kc6 {[%clk 0:00:02]} 44. Qxf6+ {[%clk 0:00:13]}  Kb7 {[%clk 0:00:03]} 45. Qe7+ {[%clk 0:00:13]}  Rc7 {[%clk 0:00:03]} 46. Qd6 {[%clk 0:00:12]}  Rc6 {[%clk 0:00:03]} 47. Qd7+ {[%clk 0:00:12]}  Rc7 {[%clk 0:00:03]} 48. Qd6 {[%clk 0:00:12]}  Rc6 {[%clk 0:00:04]} 49. Qd7+ {[%clk 0:00:12]}  Rc7 {[%clk 0:00:04]} 50. Qd6 {[%clk 0:00:13]} 1/2-1/2


[Site "https://www.chess.com"]

[Event "Titled Tuesday Blitz January 31 Early 2023"]
[White "Toncheva, Nadya"]
[Black "Mangialardo, Tiago Carvalho"]
[WhiteFideId "2924056"]
[BlackFideId "2130718"]
[WhiteElo "2295"]
[BlackElo "1965"]
[Result "1-0"]
[Round "06"]
[TimeControl "180+2"]
[Date "2023.01.31"]
[WhiteClock "0:01:36"]
[BlackClock "0:00:14"]

1. e4 {[%clk 0:03:00]}  e5 {[%clk 0:02:57]} 2. Nf3 {[%clk 0:03:01]}  Nc6 {[%clk 0:02:57]} 3. Bb5 {[%clk 0:03:01]}  a6 {[%clk 0:02:56]} 4. Ba4 {[%clk 0:03:01]}  Nf6 {[%clk 0:02:57]} 5. O-O {[%clk 0:03:00]}  Be7 {[%clk 0:02:57]} 6. Re1 {[%clk 0:03:00]}  d6 {[%clk 0:02:58]} 7. d4 {[%clk 0:02:59]}  exd4 {[%clk 0:02:57]} 8. Nxd4 {[%clk 0:02:59]}  Bd7 {[%clk 0:02:54]} 9. Nc3 {[%clk 0:02:58]}  O-O {[%clk 0:02:53]} 10. Bxc6 {[%clk 0:02:53]}  bxc6 {[%clk 0:02:53]} 11. Bf4 {[%clk 0:02:51]}  Re8 {[%clk 0:02:46]} 12. Qd2 {[%clk 0:02:51]}  Nh5 {[%clk 0:02:38]} 13. Be3 {[%clk 0:02:49]}  Nf6 {[%clk 0:02:32]} 14. Rad1 {[%clk 0:02:46]}  Qb8 {[%clk 0:02:23]} 15. b3 {[%clk 0:02:45]}  c5 {[%clk 0:02:01]} 16. Nf3 {[%clk 0:02:42]}  Qb4 {[%clk 0:02:01]} 17. e5 {[%clk 0:02:33]}  Ng4 {[%clk 0:01:40]} 18. Nd5 {[%clk 0:02:32]}  Qxd2 {[%clk 0:01:25]} 19. Bxd2 {[%clk 0:02:33]}  Rac8 {[%clk 0:00:57]} 20. exd6 {[%clk 0:02:27]}  Bxd6 {[%clk 0:00:58]} 21. Bc3 {[%clk 0:02:21]}  Bc6 {[%clk 0:00:36]} 22. Rxe8+ {[%clk 0:02:05]}  Rxe8 {[%clk 0:00:35]} 23. h3 {[%clk 0:02:06]}  Nh6 {[%clk 0:00:21]} 24. Ba5 {[%clk 0:01:50]}  Rc8 {[%clk 0:00:15]} 25. Bxc7 {[%clk 0:01:44]}  Bxc7 {[%clk 0:00:15]} 26. Ne7+ {[%clk 0:01:41]}  Kf8 {[%clk 0:00:14]} 27. Nxc8 {[%clk 0:01:42]}  Nf5 {[%clk 0:00:14]} 28. Na7 {[%clk 0:01:39]}  Bb7 {[%clk 0:00:13]} 29. Rd7 {[%clk 0:01:37]}  Bxf3 {[%clk 0:00:14]} 30. Rxc7 {[%clk 0:01:36]} 1-0


[Site "https://www.chess.com"]

[Event "Titled Tuesday Blitz January 31 Early 2023"]
[White "Lopez Idarraga, Daniel Eduardo"]
[Black "Lehtosaari, Mauri"]
[WhiteFideId "4405501"]
[BlackFideId "501999"]
[WhiteElo "2009"]
[BlackElo "2176"]
[Result "1/2-1/2"]
[Round "06"]
[TimeControl "180+2"]
[Date "2023.01.31"]
[WhiteClock "0:01:04"]
[BlackClock "0:00:15"]

1. Nf3 {[%clk 0:03:00]}  d5 {[%clk 0:02:59]} 2. b3 {[%clk 0:03:01]}  Nf6 {[%clk 0:02:57]} 3. Bb2 {[%clk 0:03:02]}  Bf5 {[%clk 0:02:57]} 4. d3 {[%clk 0:03:01]}  e6 {[%clk 0:02:53]} 5. Nbd2 {[%clk 0:03:01]}  Be7 {[%clk 0:02:53]} 6. e4 {[%clk 0:03:01]}  dxe4 {[%clk 0:02:50]} 7. Nh4 {[%clk 0:03:01]}  Bg4 {[%clk 0:02:42]} 8. f3 {[%clk 0:02:59]}  exf3 {[%clk 0:02:38]} 9. Nhxf3 {[%clk 0:03:00]}  O-O {[%clk 0:02:33]} 10. Be2 {[%clk 0:02:58]}  c5 {[%clk 0:02:24]} 11. h3 {[%clk 0:02:54]}  Bxf3 {[%clk 0:02:08]} 12. Bxf3 {[%clk 0:02:55]}  Nc6 {[%clk 0:02:08]} 13. Bxc6 {[%clk 0:02:55]}  bxc6 {[%clk 0:02:08]} 14. Qf3 {[%clk 0:02:53]}  Qd5 {[%clk 0:02:06]} 15. Ne4 {[%clk 0:02:52]}  Nxe4 {[%clk 0:01:59]} 16. dxe4 {[%clk 0:02:53]}  Qg5 {[%clk 0:01:58]} 17. O-O {[%clk 0:02:51]}  Rad8 {[%clk 0:01:57]} 18. Rad1 {[%clk 0:02:48]}  c4 {[%clk 0:01:53]} 19. Rxd8 {[%clk 0:02:33]}  Bxd8 {[%clk 0:01:46]} 20. e5 {[%clk 0:02:32]}  Bb6+ {[%clk 0:01:40]} 21. Kh1 {[%clk 0:02:31]}  cxb3 {[%clk 0:01:40]} 22. axb3 {[%clk 0:02:30]}  Qd2 {[%clk 0:01:39]} 23. Qxc6 {[%clk 0:02:28]}  h6 {[%clk 0:01:29]} 24. Ba3 {[%clk 0:02:23]}  Rd8 {[%clk 0:01:23]} 25. Bd6 {[%clk 0:02:13]}  Qe2 {[%clk 0:01:17]} 26. Qf3 {[%clk 0:01:45]}  Qxf3 {[%clk 0:01:15]} 27. Rxf3 {[%clk 0:01:46]}  f5 {[%clk 0:01:12]} 28. c4 {[%clk 0:01:44]}  Bd4 {[%clk 0:00:58]} 29. c5 {[%clk 0:01:40]}  a5 {[%clk 0:00:51]} 30. c6 {[%clk 0:01:39]}  Rc8 {[%clk 0:00:51]} 31. Rd3 {[%clk 0:01:34]}  Bb6 {[%clk 0:00:43]} 32. Rc3 {[%clk 0:01:34]}  Kf7 {[%clk 0:00:43]} 33. h4 {[%clk 0:01:26]}  g5 {[%clk 0:00:40]} 34. hxg5 {[%clk 0:01:26]}  hxg5 {[%clk 0:00:41]} 35. Rh3 {[%clk 0:01:25]}  Kg6 {[%clk 0:00:40]} 36. c7 {[%clk 0:01:24]}  Bxc7 {[%clk 0:00:37]} 37. Rc3 {[%clk 0:01:19]}  Rh8+ {[%clk 0:00:37]} 38. Kg1 {[%clk 0:01:20]}  Bxd6 {[%clk 0:00:34]} 39. exd6 {[%clk 0:01:20]}  Rd8 {[%clk 0:00:34]} 40. Rc6 {[%clk 0:01:16]}  Kf6 {[%clk 0:00:34]} 41. Ra6 {[%clk 0:01:16]}  e5 {[%clk 0:00:31]} 42. d7+ {[%clk 0:01:16]}  Kf7 {[%clk 0:00:31]} 43. Rxa5 {[%clk 0:01:16]}  Ke6 {[%clk 0:00:32]} 44. Kf2 {[%clk 0:01:15]}  Rxd7 {[%clk 0:00:32]} 45. Ke3 {[%clk 0:01:15]}  Rb7 {[%clk 0:00:30]} 46. Ra6+ {[%clk 0:01:14]}  Kf7 {[%clk 0:00:28]} 47. Ra3 {[%clk 0:01:12]}  g4 {[%clk 0:00:28]} 48. g3 {[%clk 0:01:11]}  Kf6 {[%clk 0:00:28]} 49. Kd3 {[%clk 0:01:11]}  f4 {[%clk 0:00:28]} 50. gxf4 {[%clk 0:01:07]}  exf4 {[%clk 0:00:28]} 51. Ke4 {[%clk 0:01:05]}  Rb4+ {[%clk 0:00:28]} 52. Kd3 {[%clk 0:01:06]}  g3 {[%clk 0:00:28]} 53. Ke2 {[%clk 0:01:05]}  Rd4 {[%clk 0:00:22]} 54. Kf3 {[%clk 0:01:05]}  Rd3+ {[%clk 0:00:17]} 55. Kxf4 {[%clk 0:01:04]}  g2 {[%clk 0:00:18]} 56. Ra6+ {[%clk 0:01:04]}  Ke7 {[%clk 0:00:17]} 57. Ra7+ {[%clk 0:01:04]}  Kf6 {[%clk 0:00:17]} 58. Ra6+ {[%clk 0:01:04]}  Kf7 {[%clk 0:00:18]} 59. Ra7+ {[%clk 0:01:04]}  Kf6 {[%clk 0:00:15]} 60. Ra6+ {[%clk 0:01:04]} 1/2-1/2


[Site "https://www.chess.com"]

[Event "Titled Tuesday Blitz January 31 Early 2023"]
[White "Shuvalov, Evgenij"]
[Black "Manon-og, Ramon Jr."]
[WhiteFideId "4187237"]
[BlackFideId "5200776"]
[WhiteElo "2038"]
[BlackElo "1999"]
[Result "0-1"]
[Round "06"]
[TimeControl "180+2"]
[Date "2023.01.31"]
[WhiteClock "0:00:01"]
[BlackClock "0:00:04"]

1. d4 {[%clk 0:02:51]}  Nf6 {[%clk 0:02:48]} 2. c4 {[%clk 0:02:51]}  g6 {[%clk 0:02:47]} 3. Nc3 {[%clk 0:02:50]}  d5 {[%clk 0:02:41]} 4. Qb3 {[%clk 0:02:49]}  dxc4 {[%clk 0:02:36]} 5. Qxc4 {[%clk 0:02:50]}  Bg7 {[%clk 0:02:36]} 6. e4 {[%clk 0:02:48]}  a6 {[%clk 0:02:37]} 7. Bf4 {[%clk 0:02:28]}  c6 {[%clk 0:02:31]} 8. Nf3 {[%clk 0:02:21]}  O-O {[%clk 0:02:22]} 9. Be2 {[%clk 0:02:16]}  Be6 {[%clk 0:02:18]} 10. Qb4 {[%clk 0:02:12]}  b5 {[%clk 0:02:16]} 11. e5 {[%clk 0:01:20]}  a5 {[%clk 0:02:13]} 12. Qa3 {[%clk 0:01:14]}  Nh5 {[%clk 0:02:07]} 13. Bg5 {[%clk 0:01:10]}  b4 {[%clk 0:02:07]} 14. Qa4 {[%clk 0:01:10]}  bxc3 {[%clk 0:02:07]} 15. bxc3 {[%clk 0:01:11]}  h6 {[%clk 0:02:03]} 16. Bd2 {[%clk 0:01:09]}  Qc8 {[%clk 0:01:50]} 17. h3 {[%clk 0:01:07]}  Bh8 {[%clk 0:01:37]} 18. Bxh6 {[%clk 0:01:03]}  Ng7 {[%clk 0:01:36]} 19. O-O-O {[%clk 0:00:52]}  Nd7 {[%clk 0:01:36]} 20. g4 {[%clk 0:00:50]}  Nb6 {[%clk 0:01:36]} 21. Qc2 {[%clk 0:00:49]}  Rb8 {[%clk 0:01:26]} 22. Kd2 {[%clk 0:00:48]}  Nc4+ {[%clk 0:01:24]} 23. Ke1 {[%clk 0:00:48]}  Rb2 {[%clk 0:01:22]} 24. Qa4 {[%clk 0:00:47]}  Bd5 {[%clk 0:01:15]} 25. Rg1 {[%clk 0:00:43]}  Rxe2+ {[%clk 0:01:11]} 26. Kxe2 {[%clk 0:00:42]}  Nb2 {[%clk 0:01:11]} 27. Qc2 {[%clk 0:00:40]}  Nxd1 {[%clk 0:01:11]} 28. Rxd1 {[%clk 0:00:41]}  Qa6+ {[%clk 0:01:09]} 29. Ke3 {[%clk 0:00:39]}  Rb8 {[%clk 0:01:02]} 30. Nd2 {[%clk 0:00:36]}  Ne6 {[%clk 0:00:50]} 31. c4 {[%clk 0:00:33]}  Bg2 {[%clk 0:00:50]} 32. Rg1 {[%clk 0:00:27]}  Bxh3 {[%clk 0:00:49]} 33. Rg3 {[%clk 0:00:27]}  Rd8 {[%clk 0:00:22]} 34. Rxh3 {[%clk 0:00:22]}  Nxd4 {[%clk 0:00:20]} 35. Qe4 {[%clk 0:00:18]}  Qb6 {[%clk 0:00:20]} 36. Kf4 {[%clk 0:00:15]}  Ne6+ {[%clk 0:00:16]} 37. Kg3 {[%clk 0:00:15]}  Qc5 {[%clk 0:00:14]} 38. Be3 {[%clk 0:00:14]}  Qa3 {[%clk 0:00:11]} 39. Kg2 {[%clk 0:00:14]}  Qxa2 {[%clk 0:00:11]} 40. Rh1 {[%clk 0:00:11]}  Rxd2 {[%clk 0:00:08]} 41. Bxd2 {[%clk 0:00:11]}  Qxd2 {[%clk 0:00:09]} 42. Qxc6 {[%clk 0:00:09]}  Bxe5 {[%clk 0:00:06]} 43. Qe4 {[%clk 0:00:07]}  Nf4+ {[%clk 0:00:04]} 44. Kf3 {[%clk 0:00:07]}  Qc3+ {[%clk 0:00:03]} 45. Qe3 {[%clk 0:00:06]}  Qb2 {[%clk 0:00:02]} 46. c5 {[%clk 0:00:03]}  Kg7 {[%clk 0:00:03]} 47. c6 {[%clk 0:00:03]}  Ne6 {[%clk 0:00:03]} 48. Re1 {[%clk 0:00:01]}  Bd4 {[%clk 0:00:04]} 0-1


[Site "https://www.chess.com"]

[Event "Titled Tuesday Blitz January 31 Early 2023"]
[White "Cueto, Jonny"]
[Black "Heinemann, Josefine"]
[WhiteFideId "3300145"]
[BlackFideId "12900460"]
[WhiteElo "2122"]
[BlackElo "2289"]
[Result "0-1"]
[Round "06"]
[TimeControl "180+2"]
[Date "2023.01.31"]
[WhiteClock "0:00:03"]
[BlackClock "0:00:07"]

1. d4 {[%clk 0:03:00]}  d5 {[%clk 0:02:58]} 2. Bf4 {[%clk 0:03:00]}  Nf6 {[%clk 0:02:57]} 3. e3 {[%clk 0:03:00]}  c5 {[%clk 0:02:53]} 4. Nf3 {[%clk 0:02:59]}  Nc6 {[%clk 0:02:53]} 5. Nbd2 {[%clk 0:02:58]}  Qb6 {[%clk 0:02:46]} 6. dxc5 {[%clk 0:02:37]}  Qxb2 {[%clk 0:02:44]} 7. Rb1 {[%clk 0:02:36]}  Qc3 {[%clk 0:02:42]} 8. Bb5 {[%clk 0:02:07]}  g6 {[%clk 0:02:40]} 9. O-O {[%clk 0:01:58]}  Bg7 {[%clk 0:02:37]} 10. Nb3 {[%clk 0:01:56]}  O-O {[%clk 0:02:34]} 11. Bxc6 {[%clk 0:01:32]}  bxc6 {[%clk 0:02:34]} 12. Be5 {[%clk 0:01:32]}  Qc4 {[%clk 0:02:25]} 13. Qd4 {[%clk 0:01:09]}  Qxd4 {[%clk 0:02:23]} 14. Nbxd4 {[%clk 0:01:08]}  Ba6 {[%clk 0:02:04]} 15. Rfc1 {[%clk 0:01:04]}  Rfc8 {[%clk 0:02:03]} 16. Nd2 {[%clk 0:00:57]}  Nd7 {[%clk 0:02:02]} 17. Bxg7 {[%clk 0:00:55]}  Kxg7 {[%clk 0:02:02]} 18. N2b3 {[%clk 0:00:54]}  e5 {[%clk 0:02:02]} 19. Nf3 {[%clk 0:00:51]}  f6 {[%clk 0:02:01]} 20. Nfd2 {[%clk 0:00:48]}  Rab8 {[%clk 0:01:20]} 21. c4 {[%clk 0:00:45]}  dxc4 {[%clk 0:01:20]} 22. Nxc4 {[%clk 0:00:44]}  Bxc4 {[%clk 0:01:20]} 23. Rxc4 {[%clk 0:00:44]}  Rd8 {[%clk 0:01:20]} 24. f4 {[%clk 0:00:34]}  exf4 {[%clk 0:01:19]} 25. exf4 {[%clk 0:00:32]}  Nf8 {[%clk 0:01:17]} 26. Re1 {[%clk 0:00:30]}  Re8 {[%clk 0:01:11]} 27. Rce4 {[%clk 0:00:28]}  Rxe4 {[%clk 0:01:11]} 28. Rxe4 {[%clk 0:00:29]}  Kf7 {[%clk 0:01:12]} 29. Ra4 {[%clk 0:00:27]}  Rb7 {[%clk 0:01:09]} 30. Ra6 {[%clk 0:00:27]}  Ne6 {[%clk 0:01:04]} 31. g3 {[%clk 0:00:24]}  Rc7 {[%clk 0:01:02]} 32. Kf2 {[%clk 0:00:22]}  Ng7 {[%clk 0:00:56]} 33. Ke3 {[%clk 0:00:19]}  Nf5+ {[%clk 0:00:55]} 34. Kd3 {[%clk 0:00:20]}  h5 {[%clk 0:00:54]} 35. Kc4 {[%clk 0:00:19]}  Ne3+ {[%clk 0:00:53]} 36. Kb4 {[%clk 0:00:10]}  Nd5+ {[%clk 0:00:53]} 37. Kc4 {[%clk 0:00:06]}  Ke6 {[%clk 0:00:50]} 38. Na5 {[%clk 0:00:06]}  Kd7 {[%clk 0:00:49]} 39. Nb3 {[%clk 0:00:06]}  Rb7 {[%clk 0:00:48]} 40. Na5 {[%clk 0:00:05]}  Rc7 {[%clk 0:00:38]} 41. Nb3 {[%clk 0:00:05]}  Ne3+ {[%clk 0:00:36]} 42. Kb4 {[%clk 0:00:05]}  Nf1 {[%clk 0:00:35]} 43. Na5 {[%clk 0:00:03]}  Nxh2 {[%clk 0:00:34]} 44. Kc4 {[%clk 0:00:03]}  Nf1 {[%clk 0:00:34]} 45. Nb3 {[%clk 0:00:02]}  Nxg3 {[%clk 0:00:34]} 46. Nd4 {[%clk 0:00:03]}  Ne4 {[%clk 0:00:31]} 47. Ra3 {[%clk 0:00:03]}  h4 {[%clk 0:00:29]} 48. f5 {[%clk 0:00:04]}  g5 {[%clk 0:00:16]} 49. Ne6 {[%clk 0:00:04]}  Rb7 {[%clk 0:00:15]} 50. Nf8+ {[%clk 0:00:04]}  Ke7 {[%clk 0:00:14]} 51. Ng6+ {[%clk 0:00:04]}  Kf7 {[%clk 0:00:13]} 52. Re3 {[%clk 0:00:04]}  Nd2+ {[%clk 0:00:07]} 53. Kc3 {[%clk 0:00:05]}  Nb1+ {[%clk 0:00:07]} 54. Kc2 {[%clk 0:00:05]}  a5 {[%clk 0:00:06]} 55. Re6 {[%clk 0:00:04]}  Na3+ {[%clk 0:00:06]} 56. Kc3 {[%clk 0:00:03]}  Nb5+ {[%clk 0:00:06]} 57. Kc2 {[%clk 0:00:03]}  Nd4+ {[%clk 0:00:06]} 58. Kc3 {[%clk 0:00:03]}  Nxe6 {[%clk 0:00:07]} 0-1


[Site "https://www.chess.com"]

[Event "Titled Tuesday Blitz January 31 Early 2023"]
[White "Liu, Casper"]
[Black "Delorme, Alban"]
[WhiteFideId "1454153"]
[BlackFideId "623636"]
[WhiteElo "2278"]
[BlackElo "2298"]
[Result "1-0"]
[Round "06"]
[TimeControl "180+2"]
[Date "2023.01.31"]
[WhiteClock "0:01:09"]
[BlackClock "0:00:39"]

1. e4 {[%clk 0:01:53]}  c5 {[%clk 0:02:58]} 2. Nc3 {[%clk 0:01:52]}  Nc6 {[%clk 0:02:58]} 3. Nge2 {[%clk 0:01:52]}  g6 {[%clk 0:02:57]} 4. g3 {[%clk 0:01:51]}  Bg7 {[%clk 0:02:57]} 5. Bg2 {[%clk 0:01:52]}  d6 {[%clk 0:02:58]} 6. O-O {[%clk 0:01:52]}  Nf6 {[%clk 0:02:58]} 7. d3 {[%clk 0:01:53]}  O-O {[%clk 0:02:59]} 8. f4 {[%clk 0:01:53]}  Rb8 {[%clk 0:02:56]} 9. h3 {[%clk 0:01:51]}  Qc7 {[%clk 0:02:54]} 10. g4 {[%clk 0:01:51]}  b5 {[%clk 0:02:53]} 11. Ng3 {[%clk 0:01:51]}  Nd4 {[%clk 0:02:45]} 12. g5 {[%clk 0:01:48]}  Nd7 {[%clk 0:02:41]} 13. Nd5 {[%clk 0:01:49]}  Qd8 {[%clk 0:02:38]} 14. c3 {[%clk 0:01:49]}  Nc6 {[%clk 0:02:38]} 15. f5 {[%clk 0:01:45]}  Nde5 {[%clk 0:02:29]} 16. d4 {[%clk 0:01:37]}  cxd4 {[%clk 0:02:16]} 17. cxd4 {[%clk 0:01:38]}  Nc4 {[%clk 0:01:59]} 18. f6 {[%clk 0:01:37]}  Bh8 {[%clk 0:01:51]} 19. b3 {[%clk 0:01:32]}  Nb6 {[%clk 0:01:45]} 20. fxe7 {[%clk 0:01:27]}  Nxe7 {[%clk 0:01:42]} 21. Nf6+ {[%clk 0:01:28]}  Bxf6 {[%clk 0:01:40]} 22. gxf6 {[%clk 0:01:29]}  Nc6 {[%clk 0:01:34]} 23. Qd2 {[%clk 0:01:30]}  Nd7 {[%clk 0:01:28]} 24. Qh6 {[%clk 0:01:26]}  Nxf6 {[%clk 0:01:28]} 25. Bg5 {[%clk 0:01:27]}  Ng4 {[%clk 0:01:22]} 26. hxg4 {[%clk 0:01:25]}  f6 {[%clk 0:01:22]} 27. Be3 {[%clk 0:01:15]}  Bxg4 {[%clk 0:01:22]} 28. e5 {[%clk 0:01:12]}  Rc8 {[%clk 0:00:46]} 29. exf6 {[%clk 0:01:10]}  d5 {[%clk 0:00:39]} 30. Qg7# {[%clk 0:01:09]} 1-0


[Site "https://www.chess.com"]

[Event "Titled Tuesday Blitz January 31 Early 2023"]
[White "Kosakowski, Jakub"]
[Black "Mitrovic, Darko R"]
[WhiteFideId "1185080"]
[BlackFideId "927023"]
[WhiteElo "2485"]
[BlackElo "2220"]
[Result "1-0"]
[Round "06"]
[TimeControl "180+2"]
[Date "2023.01.31"]
[WhiteClock "0:00:58"]
[BlackClock "0:00:02"]

1. e4 {[%clk 0:02:40]}  e6 {[%clk 0:02:59]} 2. d4 {[%clk 0:02:40]}  d5 {[%clk 0:02:59]} 3. Nd2 {[%clk 0:02:40]}  Nf6 {[%clk 0:02:59]} 4. e5 {[%clk 0:02:40]}  Nfd7 {[%clk 0:02:59]} 5. Bd3 {[%clk 0:02:40]}  c5 {[%clk 0:02:59]} 6. c3 {[%clk 0:02:41]}  b6 {[%clk 0:02:54]} 7. Ne2 {[%clk 0:02:35]}  Ba6 {[%clk 0:02:53]} 8. Bxa6 {[%clk 0:02:34]}  Nxa6 {[%clk 0:02:54]} 9. O-O {[%clk 0:02:34]}  b5 {[%clk 0:02:45]} 10. f4 {[%clk 0:02:33]}  g6 {[%clk 0:02:44]} 11. Nf3 {[%clk 0:02:30]}  Be7 {[%clk 0:02:33]} 12. Be3 {[%clk 0:02:22]}  cxd4 {[%clk 0:02:24]} 13. cxd4 {[%clk 0:02:19]}  Rc8 {[%clk 0:02:13]} 14. Qd3 {[%clk 0:02:16]}  Qb6 {[%clk 0:02:07]} 15. a4 {[%clk 0:02:12]}  Nb4 {[%clk 0:01:46]} 16. Qxb5 {[%clk 0:02:10]}  Qxb5 {[%clk 0:01:39]} 17. axb5 {[%clk 0:02:10]}  Nc2 {[%clk 0:01:39]} 18. Rac1 {[%clk 0:02:06]}  O-O {[%clk 0:01:37]} 19. Bd2 {[%clk 0:02:05]}  Nb6 {[%clk 0:01:30]} 20. Bc3 {[%clk 0:01:52]}  Ne3 {[%clk 0:01:15]} 21. Rfe1 {[%clk 0:01:50]}  h5 {[%clk 0:01:05]} 22. h3 {[%clk 0:01:45]}  h4 {[%clk 0:00:55]} 23. Kf2 {[%clk 0:01:45]}  Nf5 {[%clk 0:00:55]} 24. Ra1 {[%clk 0:01:44]}  Rc7 {[%clk 0:00:52]} 25. Ra6 {[%clk 0:01:43]}  Rb7 {[%clk 0:00:44]} 26. Rea1 {[%clk 0:01:40]}  Nc4 {[%clk 0:00:33]} 27. b3 {[%clk 0:01:24]}  Nce3 {[%clk 0:00:19]} 28. Rxa7 {[%clk 0:01:24]}  Rxb5 {[%clk 0:00:19]} 29. Rxe7 {[%clk 0:01:24]}  Nxe7 {[%clk 0:00:12]} 30. Kxe3 {[%clk 0:01:23]}  Nf5+ {[%clk 0:00:12]} 31. Kd2 {[%clk 0:01:20]}  Rxb3 {[%clk 0:00:12]} 32. Nc1 {[%clk 0:01:19]}  Rb7 {[%clk 0:00:10]} 33. Nd3 {[%clk 0:01:18]}  Rfb8 {[%clk 0:00:07]} 34. Ng5 {[%clk 0:01:07]}  Rb1 {[%clk 0:00:06]} 35. Ra7 {[%clk 0:01:07]}  Rg1 {[%clk 0:00:03]} 36. Ne1 {[%clk 0:01:04]}  Rb1 {[%clk 0:00:02]} 37. Ke2 {[%clk 0:00:58]} 1-0


[Site "https://www.chess.com"]